[Event "Schachfestival IM 2018"]
[Site "Lueneburg"]
[Date "2018.07.10"]
[Round "6"]
[White "Sriram, Jha"]
[Black "Fuchs, Judith"]
[Result "1/2-1/2"]
[ECO "A43"]
[WhiteElo "2409"]
[BlackElo "2289"]
[Annotator "NA"]
[PlyCount "42"]
[EventDate "2018.07.05"]
[EventType "tourn"]
[EventCountry "GER"]
[SourceTitle "playchess.com"]
[Source "ChessBase"]
[SourceQuality "1"]
[TimeControl "40/5400+30:1800+30"]

1. d4 {[%emt 0:00:43]} Nf6 {[%emt 0:00:00]} 2. Nf3 {[%emt 0:00:31]} c5 {[%emt 0:00:00]} 3. d5 {[%emt 0:00:34]} b5 {[%emt 0:00:00]} 4. Bg5 {[%emt 0:00:44]} Qb6 {[%emt 0:00:00]} 5. a4 {[%emt 0:00:09]} b4 {[%emt 0:00:15]} 6. a5 {[%emt 0:00:05]} Qd6 {[%emt 0:00:16]} 7. c4 {[%emt 0:05:56]} Ne4 {[%emt 0:08:24]} 8. Bh4 {[%emt 0:21:25]} Qh6 {[%emt 0:14:06]} 9. Nbd2 {[%emt 0:13:36]} f5 {[%emt 0:07:38]} 10. Qc1 {[%emt 0:04:48]} Nxd2 {[%emt 0:02:01]} 11. Qxd2 {[%emt 0:00:47]} Qxd2+ {[%emt 0:00:14]} 12. Kxd2 {[%emt 0:01:25]} g6 {[%emt 0:02:39]} 13. Bg3 {[%emt 0:16:02]} d6 {[%emt 0:01:44]} 14. b3 {[%emt 0:05:22]} Bg7 {[%emt 0:02:20]} 15. Rd1 {[%emt 0:00:06]} Nd7 {[%emt 0:09:51]} 16. e3 {[%emt 0:00:10]} Nf6 {[%emt 0:01:02]} 17. Bd3 {[%emt 0:00:14]} Bd7 {[%emt 0:03:52]} 18. Kc2 {[%emt 0:00:21]} O-O-O {[%emt 0:03:58]} 19. Ng5 {[%emt 0:01:42]} Rdf8 {[%emt 0:01:46]} 20. h4 {[%emt 0:04:46]} h6 {[%emt 0:02:47]} 21. Nh3 {[%emt 0:00:14]} Nh5 {[%emt 0:04:57]} 1/2-1/2

[Event "Schachfestival IM 2018"]
[Site "Lueneburg"]
[Date "2018.07.10"]
[Round "6"]
[White "Kuberczyk, Christoph"]
[Black "Simantsev, Mikhail"]
[Result "1/2-1/2"]
[ECO "A43"]
[WhiteElo "2225"]
[BlackElo "2434"]
[Annotator "ChessBase"]
[PlyCount "76"]
[EventDate "2018.07.05"]
[EventType "tourn"]
[EventCountry "GER"]
[SourceTitle "playchess.com"]
[Source "ChessBase"]
[SourceQuality "1"]
[TimeControl "40/5400+30:1800+30"]

1. d4 {[%emt 0:00:00]} c5 {[%emt 0:06:04]} 2. d5 {[%emt 0:00:00]} Nf6 {[%emt 0:01:43]} 3. c4 {[%emt 0:00:15]} g6 {[%emt 0:02:48]} 4. Nc3 {[%emt 0:00:11]} Bg7 {[%emt 0:00:10]} 5. e4 {[%emt 0:00:43]} d6 {[%emt 0:04:24]} 6. h3 {[%emt 0:00:33]} O-O {[%emt 0:02:24]} 7. Nf3 {[%emt 0:00:27]} e6 {[%emt 0:00:26]} 8. Bd3 {[%emt 0:00:18]} exd5 {[%emt 0:00:05]} 9. exd5 {[%emt 0:00:08]} Re8+ {[%emt 0:01:36]} 10. Be3 {[%emt 0:00:11]} Nh5 {[%emt 0:15:00]} 11. O-O {[%emt 0:01:37]} f5 {[%emt 0:01:08]} 12. Qd2 {[%emt 0:12:55]} Nd7 {[%emt 0:04:05]} 13. Rfe1 {[%emt 0:23:38]} a6 {[%emt 0:12:53]} 14. Bg5 {[%emt 0:05:46]} Ndf6 {[%emt 0:12:20]} 15. Bh6 {[%emt 0:15:06]} Bd7 {[%emt 0:03:21]} 16. Bxg7 {[%emt 0:00:40]} Nxg7 {[%emt 0:05:20]} 17. Rxe8+ {[%emt 0:02:53]} Qxe8 {[%emt 0:00:37]} 18. Re1 {[%emt 0:00:24]} Qf8 {[%emt 0:01:30]} 19. a4 {[%emt 0:09:42]} Re8 {[%emt 0:02:20]} 20. a5 {[%emt 0:02:52]} Rxe1+ {[%emt 0:02:09]} 21. Qxe1 {[%emt 0:00:18]} Qd8 {[%emt 0:00:21]} 22. Ne2 {[%emt 0:00:46]} b6 {[%emt 0:01:04]} 23. axb6 {[%emt 0:03:14]} Qxb6 {[%emt 0:01:25]} 24. Qc3 {[%emt 0:02:06]} Nfe8 {[%emt 0:08:49]} 25. Nf4 {[%emt 0:00:59]} a5 {[%emt 0:01:33]} 26. g3 Qd8 27. h4 {[%emt 0:05:51]} Nf6 {[%emt 0:03:45]} 28. b3 {[%emt 0:00:59]} Nfh5 {[%emt 0:00:18]} 29. Nxh5 {[%emt 0:06:07]} Nxh5 {[%emt 0:00:02]} 30. Ng5 {[%emt 0:00:30]} h6 {[%emt 0:02:53]} 31. Qh8+ {[%emt 0:01:09]} Kxh8 {[%emt 0:00:10]} 32. Nf7+ {[%emt 0:00:01]} Kg7 {[%emt 0:00:31]} 33. Nxd8 {[%emt 0:00:05]} Kf6 {[%emt 0:01:37]} 34. Nb7 {[%emt 0:00:09]} Ke5 {[%emt 0:01:24]} 35. Nxa5 {[%emt 0:03:42]} Kd4 {[%emt 0:00:01]} 36. Be2 {[%emt 0:00:35]} Nf6 {[%emt 0:00:01]} 37. Nb7 {[%emt 0:02:49]} Ne8 {[%emt 0:00:01]} 38. f4 {[%emt 0:00:30]} h5 {[%emt 0:02:55]} 1/2-1/2

[Event "Schachfestival IM 2018"]
[Site "Lueneburg"]
[Date "2018.07.10"]
[Round "6"]
[White "Light, Bjarne"]
[Black "Polster, Christian"]
[Result "0-1"]
[ECO "A48"]
[WhiteElo "2177"]
[BlackElo "2286"]
[Annotator "ChessBase"]
[PlyCount "68"]
[EventDate "2018.07.05"]
[EventType "tourn"]
[EventCountry "GER"]
[SourceTitle "playchess.com"]
[Source "ChessBase"]
[SourceQuality "1"]
[TimeControl "40/5400+30:1800+30"]

1. d4 {[%emt 0:00:00]} Nf6 {[%emt 0:00:35]} 2. Nf3 {[%emt 0:00:00]} g6 {[%emt 0:00:10]} 3. Bg5 {[%emt 0:00:10]} Bg7 {[%emt 0:00:10]} 4. Nbd2 {[%emt 0:00:08]} O-O {[%emt 0:00:14]} 5. e4 {[%emt 0:01:38]} d5 {[%emt 0:00:35]} 6. Bd3 {[%emt 0:09:15]} c5 {[%emt 0:13:01]} 7. e5 {[%emt 0:08:03]} Nfd7 {[%emt 0:01:04]} 8. c3 {[%emt 0:00:37]} Nc6 {[%emt 0:01:27]} 9. Be3 {[%emt 0:12:53]} Qb6 {[%emt 0:03:12]} 10. b3 {[%emt 0:12:44]} cxd4 {[%emt 0:01:57]} 11. cxd4 {[%emt 0:00:10]} f6 {[%emt 0:01:20]} 12. h4 {[%emt 0:06:37]} fxe5 {[%emt 0:04:59]} 13. dxe5 {[%emt 0:04:11]} Qa5 {[%emt 0:01:54]} 14. h5 {[%emt 0:03:01]} Ndxe5 {[%emt 0:02:04]} 15. Be2 {[%emt 0:06:29]} Nxf3+ {[%emt 0:14:32]} 16. gxf3 {[%emt 0:01:03]} d4 {[%emt 0:02:09]} 17. b4 {[%emt 0:01:22]} Qf5 {[%emt 0:01:41]} 18. Qb3+ {[%emt 0:03:46]} e6 {[%emt 0:03:23]} 19. Bd3 {[%emt 0:01:42]} Qf6 {[%emt 0:02:40]} 20. Bg5 {[%emt 0:14:28]} Qxg5 {[%emt 0:00:51]} 21. Ke2 {[%emt 0:00:43]} Qd5 {[%emt 0:04:31]} 22. Bc4 {[%emt 0:02:23]} d3+ {[%emt 0:01:29]} 23. Kf1 {[%emt 0:00:40]} Nd4 {[%emt 0:02:38]} 24. Qxd3 {[%emt 0:03:49]} Qf5 {[%emt 0:00:19]} 25. hxg6 {[%emt 0:01:26]} Nxf3 {[%emt 0:03:24]} 26. gxh7+ {[%emt 0:02:13]} Kh8 {[%emt 0:00:09]} 27. Rd1 {[%emt 0:00:40]} Qxd3+ {[%emt 0:03:51]} 28. Bxd3 {[%emt 0:00:05]} Ne5 {[%emt 0:00:28]} 29. Be2 {[%emt 0:01:15]} Bd7 {[%emt 0:01:42]} 30. b5 {[%emt 0:00:42]} Be8 {[%emt 0:06:40]} 31. Ne4 {[%emt 0:00:32]} Bg6 {[%emt 0:00:43]} 32. Nc5 {[%emt 0:00:31]} Bf5 {[%emt 0:03:35]} 33. Rh4 {[%emt 0:01:08]} b6 {[%emt 0:01:20]} 34. Ne4 {[%emt 0:00:50]} Ng6 0-1

[Event "Schachfestival IM 2018"]
[Site "Lueneburg"]
[Date "2018.07.10"]
[Round "6"]
[White "Pubantz, Jan"]
[Black "Lubbe, Melanie"]
[Result "0-1"]
[ECO "A41"]
[WhiteElo "1997"]
[BlackElo "2332"]
[Annotator "ChessBase"]
[PlyCount "114"]
[EventDate "2018.07.05"]
[EventType "tourn"]
[EventCountry "GER"]
[SourceTitle "playchess.com"]
[Source "ChessBase"]
[SourceQuality "1"]
[TimeControl "40/5400+30:1800+30"]

1. Nf3 {[%emt 0:00:20]} d6 {[%emt 0:00:00]} 2. d4 {[%emt 0:01:32]} Bg4 {[%emt 0:00:00]} 3. g3 {[%emt 0:16:21]} Nd7 {[%emt 0:04:02]} 4. Bg2 {[%emt 0:00:27]} c6 {[%emt 0:00:37]} 5. O-O {[%emt 0:01:02]} Ngf6 {[%emt 0:00:19]} 6. c4 {[%emt 0:01:40]} e5 {[%emt 0:01:39]} 7. Nc3 {[%emt 0:05:39]} Be7 {[%emt 0:03:25]} 8. b3 {[%emt 0:07:06]} O-O {[%emt 0:00:40]} 9. Bb2 {[%emt 0:01:17]} Re8 {[%emt 0:01:10]} 10. d5 {[%emt 0:10:02]} a5 {[%emt 0:07:16]} 11. h3 {[%emt 0:06:27]} Bh5 {[%emt 0:01:49]} 12. dxc6 {[%emt 0:02:19]} bxc6 {[%emt 0:00:06]} 13. Nh4 {[%emt 0:02:09]} Qc7 {[%emt 0:19:04]} 14. Nf5 {[%emt 0:00:39]} Rad8 {[%emt 0:01:19]} 15. Nxe7+ {[%emt 0:02:31]} Rxe7 {[%emt 0:00:04]} 16. Qd2 {[%emt 0:02:41]} Nc5 {[%emt 0:02:33]} 17. Rfd1 {[%emt 0:02:26]} Red7 {[%emt 0:04:08]} 18. Rac1 {[%emt 0:03:13]} Qb6 {[%emt 0:01:44]} 19. Qe3 {[%emt 0:10:29]} Qc7 {[%emt 0:07:49]} 20. Rd2 {[%emt 0:10:35]} h6 {[%emt 0:12:47]} 21. Rcd1 {[%emt 0:00:21]} Bg6 {[%emt 0:01:30]} 22. Kh2 {[%emt 0:04:23]} Ne8 {[%emt 0:02:09]} 23. Qf3 {[%emt 0:01:10]} Rc8 {[%emt 0:01:26]} 24. h4 {[%emt 0:01:08]} f5 {[%emt 0:02:59]} 25. Bh3 {[%emt 0:00:31]} Rf7 {[%emt 0:01:57]} 26. Ba3 {[%emt 0:01:30]} Nb7 {[%emt 0:02:54]} 27. e4 {[%emt 0:02:56]} fxe4 {[%emt 0:01:53]} 28. Qe3 {[%emt 0:00:08]} Rf3 {[%emt 0:02:16]} 29. Qe1 {[%emt 0:01:47]} Rxc3 {[%emt 0:02:56]} 30. Bxc8 {[%emt 0:00:28]} Qxc8 {[%emt 0:00:06]} 31. Rxd6 {[%emt 0:00:35]} Nbxd6 {[%emt 0:01:48]} 32. Qxc3 {[%emt 0:00:16]} Qf5 {[%emt 0:03:50]} 33. Qe3 {[%emt 0:01:10]} Nf6 {[%emt 0:00:53]} 34. Kg1 {[%emt 0:00:59]} Ng4 {[%emt 0:01:42]} 35. Qe2 {[%emt 0:00:25]} Nf7 {[%emt 0:00:39]} 36. Bc5 {[%emt 0:00:27]} Bh5 {[%emt 0:01:03]} 37. Qd2 {[%emt 0:00:42]} Nf6 {[%emt 0:01:55]} 38. Re1 {[%emt 0:00:20]} Bf3 {[%emt 0:00:19]} 39. Kh2 {[%emt 0:00:19]} g5 {[%emt 0:02:10]} 40. a3 {[%emt 0:00:55]} gxh4 {[%emt 0:01:58]} 41. gxh4 {[%emt 0:01:08]} Kh7 {[%emt 0:00:41]} 42. Rg1 {[%emt 0:06:42]} Qh5 {[%emt 0:00:41]} 43. Kh3 {[%emt 0:01:15]} Ng5+ {[%emt 0:09:00]} 44. Rxg5 {[%emt 0:00:08]} hxg5 {[%emt 0:00:03]} 45. Qxg5 {[%emt 0:00:07]} Qxg5 {[%emt 0:00:22]} 46. hxg5 {[%emt 0:00:04]} Nd7 {[%emt 0:00:25]} 47. Bd6 {[%emt 0:00:05]} Kg6 {[%emt 0:02:02]} 48. Kh4 {[%emt 0:00:14]} c5 {[%emt 0:02:56]} 49. b4 {[%emt 0:02:17]} cxb4 {[%emt 0:00:38]} 50. axb4 {[%emt 0:00:19]} a4 {[%emt 0:02:08]} 51. b5 {[%emt 0:00:45]} Be2 {[%emt 0:00:14]} 52. b6 {[%emt 0:00:13]} Nxb6 {[%emt 0:00:12]} 53. Bxe5 {[%emt 0:01:11]} Nxc4 {[%emt 0:00:12]} 54. Bf6 {[%emt 0:00:42]} a3 {[%emt 0:00:34]} 55. Kg3 {[%emt 0:00:54]} Kf5 {[%emt 0:00:17]} 56. Ba1 {[%emt 0:01:36]} Kxg5 {[%emt 0:00:13]} 57. Kg2 {[%emt 0:01:46]} Nd2 {[%emt 0:00:23]} 0-1

[Event "Schachfestival IM 2018"]
[Site "Lueneburg"]
[Date "2018.07.11"]
[Round "7"]
[White "Lubbe, Melanie"]
[Black "Kuberczyk, Christoph"]
[Result "1-0"]
[ECO "B03"]
[WhiteElo "2332"]
[BlackElo "2225"]
[Annotator "NA"]
[PlyCount "75"]
[EventDate "2018.07.05"]
[EventType "tourn"]
[EventCountry "GER"]
[SourceTitle "playchess.com"]
[Source "ChessBase"]
[SourceQuality "1"]
[TimeControl "40/5400+30:1800+30"]

1. e4 {[%emt 0:00:00]} Nf6 {[%emt 0:00:00]} 2. e5 {[%emt 0:00:00]} Nd5 {[%emt 0:00:00]} 3. d4 {[%emt 0:00:00]} d6 {[%emt 0:00:00]} 4. c4 {[%emt 0:00:00]} Nb6 {[%emt 0:00:16]} 5. exd6 {[%emt 0:00:04]} cxd6 {[%emt 0:00:08]} 6. d5 {[%emt 0:03:59]} e5 {[%emt 0:12:36]} 7. Bd3 {[%emt 0:01:28]} Be7 {[%emt 0:03:12]} 8. Ne2 {[%emt 0:02:40]} O-O {[%emt 0:03:20]} 9. b3 {[%emt 0:06:04]} a5 {[%emt 0:20:22]} 10. Nbc3 {[%emt 0:07:47]} Na6 {[%emt 0:02:42]} 11. O-O {[%emt 0:05:17]} a4 {[%emt 0:04:43]} 12. Be3 {[%emt 0:02:55]} axb3 {[%emt 0:12:54]} 13. axb3 {[%emt 0:00:32]} Bg5 {[%emt 0:00:55]} 14. f4 {[%emt 0:08:24]} exf4 {[%emt 0:00:14]} 15. Nxf4 {[%emt 0:01:08]} Nd7 {[%emt 0:08:58]} 16. Ne4 {[%emt 0:09:00]} Ne5 {[%emt 0:01:05]} 17. Nxg5 {[%emt 0:16:49]} Qxg5 {[%emt 0:00:10]} 18. Be4 {[%emt 0:05:06]} Re8 {[%emt 0:03:24]} 19. Bd2 {[%emt 0:03:54]} Ng4 {[%emt 0:05:24]} 20. Qf3 {[%emt 0:01:23]} Qe5 {[%emt 0:03:43]} 21. Bc3 {[%emt 0:05:02]} Qxe4 {[%emt 0:00:47]} 22. Rae1 {[%emt 0:01:05]} Ne3 {[%emt 0:00:05]} 23. Bd2 {[%emt 0:02:31]} Bd7 {[%emt 0:04:22]} 24. Rxe3 {[%emt 0:00:48]} Qxf3 {[%emt 0:00:29]} 25. Rexf3 {[%emt 0:00:16]} b5 {[%emt 0:01:50]} 26. Rg3 {[%emt 0:01:28]} Bf5 {[%emt 0:04:36]} 27. Bc3 {[%emt 0:04:28]} Bg6 {[%emt 0:00:07]} 28. h4 {[%emt 0:03:16]} Nc5 {[%emt 0:01:27]} 29. Bd4 {[%emt 0:01:25]} Ne4 {[%emt 0:00:12]} 30. Re3 {[%emt 0:00:13]} Nd2 {[%emt 0:01:50]} 31. Rfe1 {[%emt 0:00:48]} Rxe3 {[%emt 0:00:11]} 32. Bxe3 {[%emt 0:00:44]} Nxb3 {[%emt 0:01:05]} 33. cxb5 {[%emt 0:00:06]} Nc5 {[%emt 0:01:47]} 34. Bxc5 {[%emt 0:02:35]} dxc5 {[%emt 0:00:01]} 35. b6 {[%emt 0:00:40]} Kf8 {[%emt 0:01:35]} 36. Nxg6+ {[%emt 0:00:56]} fxg6 {[%emt 0:01:16]} 37. d6 {[%emt 0:00:04]} Rd8 {[%emt 0:01:20]} 38. b7 {[%emt 0:00:17]} 1-0

[Event "Schachfestival IM 2018"]
[Site "Lueneburg"]
[Date "2018.07.11"]
[Round "7"]
[White "Fuchs, Judith"]
[Black "Light, Bjarne"]
[Result "1-0"]
[ECO "B30"]
[WhiteElo "2289"]
[BlackElo "2177"]
[Annotator "ChessBase"]
[PlyCount "103"]
[EventDate "2018.07.05"]
[EventType "tourn"]
[EventCountry "GER"]
[SourceTitle "playchess.com"]
[Source "ChessBase"]
[SourceQuality "1"]
[TimeControl "40/5400+30:1800+30"]

1. e4 {[%emt 0:00:00]} c5 {[%emt 0:00:00]} 2. Nf3 {[%emt 0:00:00]} Nc6 {[%emt 0:00:04]} 3. Nc3 {[%emt 0:00:00]} e5 {[%emt 0:00:10]} 4. Bc4 {[%emt 0:00:00]} h6 {[%emt 0:02:03]} 5. O-O {[%emt 0:01:58]} g6 {[%emt 0:07:26]} 6. b4 {[%emt 0:00:25]} d6 {[%emt 0:05:58]} 7. bxc5 {[%emt 0:00:09]} dxc5 {[%emt 0:00:05]} 8. Nd5 {[%emt 0:00:07]} Bg7 {[%emt 0:02:18]} 9. d4 {[%emt 0:00:11]} cxd4 {[%emt 0:12:37]} 10. Ba3 {[%emt 0:00:09]} Nge7 {[%emt 0:00:12]} 11. c3 {[%emt 0:01:00]} O-O {[%emt 0:08:32]} 12. cxd4 {[%emt 0:00:58]} Bg4 {[%emt 0:02:21]} 13. Nxe7+ {[%emt 0:02:32]} Nxe7 {[%emt 0:00:14]} 14. d5 {[%emt 0:00:52]} Re8 {[%emt 0:01:21]} 15. h3 {[%emt 0:02:23]} Bd7 {[%emt 0:00:32]} 16. Rb1 {[%emt 0:04:56]} Nc8 {[%emt 0:03:02]} 17. Qd2 {[%emt 0:07:32]} Nb6 {[%emt 0:01:56]} 18. Bb3 {[%emt 0:02:12]} Bb5 {[%emt 0:03:01]} 19. Rfc1 {[%emt 0:00:32]} Qd7 {[%emt 0:01:37]} 20. Bc5 {[%emt 0:12:03]} Na4 {[%emt 0:05:29]} 21. Be3 {[%emt 0:01:08]} Kh7 {[%emt 0:04:59]} 22. d6 {[%emt 0:06:13]} Rec8 {[%emt 0:07:52]} 23. Rxc8 {[%emt 0:03:07]} Rxc8 {[%emt 0:00:45]} 24. Bxa7 {[%emt 0:01:50]} Nc3 {[%emt 0:07:09]} 25. Re1 {[%emt 0:00:44]} Ba6 {[%emt 0:01:03]} 26. Bb6 {[%emt 0:06:51]} Nb5 {[%emt 0:05:55]} 27. Bxf7 {[%emt 0:05:17]} Nxd6 {[%emt 0:05:54]} 28. Bd5 {[%emt 0:02:48]} Qb5 {[%emt 0:02:18]} 29. Qa5 {[%emt 0:06:33]} Nc4 {[%emt 0:02:44]} 30. Qxb5 {[%emt 0:06:18]} Bxb5 {[%emt 0:00:05]} 31. Ba7 {[%emt 0:00:55]} Nd6 {[%emt 0:04:43]} 32. Rd1 {[%emt 0:07:21]} Be2 {[%emt 0:00:56]} 33. Rd2 {[%emt 0:00:23]} Rc1+ {[%emt 0:01:26]} 34. Kh2 {[%emt 0:00:21]} Bc4 {[%emt 0:00:22]} 35. Be3 {[%emt 0:02:21]} Ra1 {[%emt 0:00:31]} 36. Bxc4 {[%emt 0:09:38]} Nxc4 {[%emt 0:00:06]} 37. Rc2 {[%emt 0:00:34]} Nxe3 {[%emt 0:00:58]} 38. fxe3 {[%emt 0:00:02]} g5 {[%emt 0:00:24]} 39. Rb2 {[%emt 0:00:45]} Kg8 {[%emt 0:01:10]} 40. Kg3 {[%emt 0:02:00]} Bf8 {[%emt 0:00:59]} 41. Kg4 {[%emt 0:32:50]} Bc5 {[%emt 0:03:04]} 42. Re2 {[%emt 0:00:00]} Kg7 {[%emt 0:04:10]} 43. Nxe5 {[%emt 0:00:00]} Bd6 {[%emt 0:10:18]} 44. Kf5 {[%emt 0:00:00]} Rb1 {[%emt 0:06:22]} 45. Nf3 {[%emt 0:00:00]} Bc5 {[%emt 0:01:51]} 46. e5 {[%emt 0:00:00]} Rb4 {[%emt 0:01:25]} 47. Nh2 {[%emt 0:00:00]} Kf7 {[%emt 0:02:10]} 48. Ng4 {[%emt 0:00:40]} Rb6 {[%emt 0:01:32]} 49. Rc2 {[%emt 0:01:41]} Be7 {[%emt 0:01:36]} 50. Rc7 {[%emt 0:01:48]} h5 {[%emt 0:00:48]} 51. Nf6 {[%emt 0:00:39]} g4 {[%emt 0:01:10]} 52. Rxe7+ {[%emt 0:00:18]} 1-0

[Event "Schachfestival IM 2018"]
[Site "Lueneburg"]
[Date "2018.07.11"]
[Round "7"]
[White "Wenzel, Birger"]
[Black "Pubantz, Jan"]
[Result "0-1"]
[ECO "B51"]
[WhiteElo "2084"]
[BlackElo "1997"]
[Annotator "NA"]
[PlyCount "78"]
[EventDate "2018.07.05"]
[EventType "tourn"]
[EventCountry "GER"]
[SourceTitle "playchess.com"]
[Source "ChessBase"]
[SourceQuality "1"]
[TimeControl "40/5400+30:1800+30"]

1. e4 {[%emt 0:00:00]} c5 {[%emt 0:00:00]} 2. Nf3 {[%emt 0:00:00]} d6 {[%emt 0:00:00]} 3. Bb5+ {[%emt 0:00:00]} Nd7 {[%emt 0:00:00]} 4. O-O {[%emt 0:00:00]} a6 {[%emt 0:00:00]} 5. Bxd7+ {[%emt 0:00:00]} Bxd7 {[%emt 0:00:04]} 6. d4 {[%emt 0:00:00]} cxd4 {[%emt 0:00:40]} 7. Qxd4 {[%emt 0:00:06]} Nf6 {[%emt 0:00:08]} 8. Bg5 {[%emt 0:00:09]} h6 {[%emt 0:05:42]} 9. Bxf6 {[%emt 0:00:33]} gxf6 {[%emt 0:00:06]} 10. Nc3 {[%emt 0:00:21]} Rc8 {[%emt 0:01:21]} 11. a4 {[%emt 0:01:55]} Rg8 {[%emt 0:05:55]} 12. Qd3 {[%emt 0:03:12]} e6 {[%emt 0:17:10]} 13. a5 {[%emt 0:07:03]} Qc7 {[%emt 0:09:12]} 14. Rfe1 {[%emt 0:08:14]} h5 {[%emt 0:07:08]} 15. Nd4 {[%emt 0:05:11]} Bh6 {[%emt 0:07:20]} 16. Ra3 {[%emt 0:16:41]} Qc4 {[%emt 0:05:33]} 17. Nd5 {[%emt 0:11:17]} exd5 {[%emt 0:17:26]} 18. exd5+ {[%emt 0:00:09]} Kf8 {[%emt 0:06:13]} 19. Qh7 {[%emt 0:02:54]} Bg7 {[%emt 0:01:04]} 20. Rg3 {[%emt 0:15:10]} Re8 {[%emt 0:01:57]} 21. Rxe8+ {[%emt 0:03:20]} Bxe8 {[%emt 0:00:13]} 22. Nf5 {[%emt 0:03:40]} Qxc2 {[%emt 0:09:59]} 23. h3 {[%emt 0:00:27]} Qc1+ {[%emt 0:02:38]} 24. Kh2 {[%emt 0:00:24]} Qf4 {[%emt 0:01:35]} 25. Nxg7 {[%emt 0:05:15]} h4 {[%emt 0:00:32]} 26. Ne6+ {[%emt 0:14:31]} fxe6 {[%emt 0:00:03]} 27. Qxg8+ {[%emt 0:00:06]} Ke7 {[%emt 0:00:06]} 28. Qg7+ {[%emt 0:00:56]} Kd8 {[%emt 0:00:13]} 29. Qxb7 {[%emt 0:00:44]} hxg3+ {[%emt 0:00:52]} 30. fxg3 {[%emt 0:00:05]} Qe4 {[%emt 0:00:53]} 31. Qb6+ {[%emt 0:00:21]} Ke7 {[%emt 0:00:22]} 32. Qa7+ {[%emt 0:01:16]} Bd7 {[%emt 0:00:42]} 33. dxe6 {[%emt 0:00:11]} Kxe6 {[%emt 0:00:27]} 34. Qxa6 {[%emt 0:00:49]} Bc6 {[%emt 0:00:09]} 35. Qf1 {[%emt 0:01:26]} d5 {[%emt 0:00:39]} 36. a6 {[%emt 0:00:54]} d4 {[%emt 0:00:43]} 37. Qc4+ {[%emt 0:00:19]} Bd5 {[%emt 0:00:37]} 38. Qc8+ {[%emt 0:00:14]} Kf7 {[%emt 0:00:20]} 39. Qd7+ {[%emt 0:00:59]} Kg6 {[%emt 0:00:14]} 0-1

[Event "Schachfestival IM 2018"]
[Site "Lueneburg"]
[Date "2018.07.12"]
[Round "8"]
[White "Lubbe, Melanie"]
[Black "Wenzel, Birger"]
[Result "1-0"]
[ECO "B43"]
[WhiteElo "2332"]
[BlackElo "2084"]
[Annotator "ChessBase"]
[PlyCount "57"]
[EventDate "2018.07.05"]
[EventType "tourn"]
[EventCountry "GER"]
[SourceTitle "playchess.com"]
[Source "ChessBase"]
[SourceQuality "1"]
[TimeControl "40/5400+30:1800+30"]

1. e4 {[%emt 0:00:00]} c5 {[%emt 0:00:00]} 2. Nf3 {[%emt 0:00:00]} e6 {[%emt 0:00:00]} 3. d4 {[%emt 0:00:00]} cxd4 {[%emt 0:00:00]} 4. Nxd4 {[%emt 0:00:00]} a6 {[%emt 0:00:00]} 5. Nc3 {[%emt 0:00:31]} b5 {[%emt 0:00:01]} 6. Bd3 {[%emt 0:01:27]} d6 {[%emt 0:00:08]} 7. O-O {[%emt 0:00:53]} Nf6 {[%emt 0:00:08]} 8. Qe2 {[%emt 0:02:42]} Be7 {[%emt 0:00:12]} 9. f4 {[%emt 0:03:49]} O-O {[%emt 0:02:31]} 10. Kh1 {[%emt 0:01:35]} Bb7 {[%emt 0:01:10]} 11. a3 {[%emt 0:05:03]} Nbd7 {[%emt 0:04:13]} 12. Bd2 {[%emt 0:02:48]} Qc7 {[%emt 0:04:57]} 13. Rae1 {[%emt 0:02:20]} Rfe8 {[%emt 0:03:21]} 14. e5 {[%emt 0:04:23]} Nd5 {[%emt 0:02:49]} 15. f5 {[%emt 0:14:22]} Nxe5 {[%emt 0:38:42]} 16. fxe6 {[%emt 0:01:43]} Bf6 {[%emt 0:08:44]} 17. Bxh7+ {[%emt 0:19:52]} Kf8 {[%emt 0:06:16]} 18. Nxd5 {[%emt 0:08:12]} Bxd5 {[%emt 0:00:15]} 19. Be4 {[%emt 0:08:07]} Bc4 {[%emt 0:05:23]} 20. Qh5 {[%emt 0:00:45]} Bxf1 {[%emt 0:02:35]} 21. Bxa8 {[%emt 0:00:05]} g6 {[%emt 0:00:56]} 22. Qh3 {[%emt 0:04:14]} Qc4 {[%emt 0:01:49]} 23. Qh6+ {[%emt 0:02:58]} Bg7 {[%emt 0:09:29]} 24. Qf4 {[%emt 0:00:08]} f5 {[%emt 0:00:10]} 25. b3 {[%emt 0:03:06]} Qc5 {[%emt 0:02:37]} 26. Bb4 {[%emt 0:03:43]} Qb6 {[%emt 0:00:07]} 27. Bd5 {[%emt 0:01:22]} a5 {[%emt 0:01:12]} 28. Rxe5 {[%emt 0:05:36]} Re7 {[%emt 0:03:15]} 29. Bxd6 {[%emt 0:00:52]} 1-0

[Event "Schachfestival IM 2018"]
[Site "Lueneburg"]
[Date "2018.07.12"]
[Round "8"]
[White "Kuberczyk, Christoph"]
[Black "Sriram, Jha"]
[Result "0-1"]
[ECO "D45"]
[WhiteElo "2225"]
[BlackElo "2409"]
[Annotator "ChessBase"]
[PlyCount "74"]
[EventDate "2018.07.05"]
[EventType "tourn"]
[EventCountry "GER"]
[SourceTitle "playchess.com"]
[Source "ChessBase"]
[SourceQuality "1"]
[TimeControl "40/5400+30:1800+30"]

1. d4 {[%emt 0:00:00]} d5 {[%emt 0:00:00]} 2. c4 {[%emt 0:00:00]} c6 {[%emt 0:00:23]} 3. Nc3 {[%emt 0:00:09]} Nf6 {[%emt 0:00:30]} 4. e3 {[%emt 0:00:29]} a6 {[%emt 0:05:46]} 5. Nf3 {[%emt 0:00:41]} e6 {[%emt 0:03:49]} 6. b3 {[%emt 0:00:56]} Bb4 {[%emt 0:03:18]} 7. Bd2 {[%emt 0:00:42]} Nbd7 {[%emt 0:00:27]} 8. Bd3 {[%emt 0:00:45]} O-O {[%emt 0:02:56]} 9. O-O {[%emt 0:00:53]} Qe7 {[%emt 0:00:24]} 10. Bc2 {[%emt 0:05:12]} Re8 {[%emt 0:09:25]} 11. Re1 {[%emt 0:09:52]} e5 {[%emt 0:26:49]} 12. cxd5 {[%emt 0:04:05]} cxd5 {[%emt 0:11:40]} 13. e4 {[%emt 0:02:26]} Bxc3 {[%emt 0:00:03]} 14. Bxc3 {[%emt 0:00:15]} Nxe4 {[%emt 0:00:02]} 15. Bxe4 {[%emt 0:01:25]} dxe4 {[%emt 0:00:01]} 16. Nxe5 {[%emt 0:00:47]} Nxe5 {[%emt 0:00:43]} 17. dxe5 {[%emt 0:06:36]} Bf5 {[%emt 0:00:42]} 18. Qh5 {[%emt 0:08:14]} Bg6 {[%emt 0:01:20]} 19. Qe2 {[%emt 0:00:20]} Red8 {[%emt 0:02:39]} 20. Rad1 {[%emt 0:07:10]} Rd3 {[%emt 0:02:44]} 21. Rxd3 {[%emt 0:00:47]} exd3 {[%emt 0:00:01]} 22. Qd2 {[%emt 0:00:14]} Rc8 {[%emt 0:00:28]} 23. h3 {[%emt 0:04:49]} h5 {[%emt 0:01:57]} 24. Rc1 {[%emt 0:07:25]} Qe6 {[%emt 0:01:51]} 25. Qf4 {[%emt 0:02:38]} Qd5 {[%emt 0:02:51]} 26. Bd2 {[%emt 0:08:51]} Re8 {[%emt 0:03:34]} 27. Re1 {[%emt 0:02:58]} Qc5 {[%emt 0:01:30]} 28. Qg5 {[%emt 0:10:34]} Kh7 {[%emt 0:02:50]} 29. Qe3 {[%emt 0:08:33]} Qxe3 {[%emt 0:04:46]} 30. Rxe3 {[%emt 0:03:39]} Rc8 {[%emt 0:00:01]} 31. Re1 {[%emt 0:01:01]} Rc2 {[%emt 0:00:07]} 32. Rd1 {[%emt 0:00:42]} Rxa2 {[%emt 0:00:07]} 33. f4 {[%emt 0:01:19]} h4 {[%emt 0:00:42]} 34. Be1 {[%emt 0:01:31]} Be4 {[%emt 0:01:00]} 35. Bd2 {[%emt 0:00:58]} Bd5 {[%emt 0:01:16]} 36. b4 {[%emt 0:00:30]} Bb3 {[%emt 0:00:28]} 37. Rb1 {[%emt 0:00:01]} Ba4 {[%emt 0:00:16]} 0-1